[Event "Turkey IS Bank Super League 2017"]
[Site "Darica-Kocaeli"]
[Date "2017.07.30"]
[Round "5"]
[White "Nomin-Erdene, Davaademberel"]
[Black "Tanriverdi, Enes"]
[Result "1-0"]
[ECO "B48"]
[WhiteElo "2373"]
[BlackElo "2203"]
[Annotator "NA"]
[PlyCount "111"]
[EventType "team-tourn"]
[EventCountry "TUR"]
[SourceTitle "playchess.com"]
[Source "ChessBase"]
[SourceQuality "1"]
[TimeControl "40/5400+30:1800+30"]

1. e4 {[%emt 0:00:30]} c5 {[%emt 0:01:00]} 2. Nf3 {[%emt 0:00:30]} e6 {[%emt 0:00:30]} 3. d4 {[%emt 0:00:30]} cxd4 {[%emt 0:00:00]} 4. Nxd4 {[%emt 0:00:00]} Nc6 {[%emt 0:00:00]} 5. Nc3 {[%emt 0:00:00]} Qc7 {[%emt 0:00:00]} 6. Be3 {[%emt 0:00:30]} a6 {[%emt 0:00:00]} 7. Qf3 {[%emt 0:00:30] B48: Sicilian: Taimanov: 5 Nc3 Qc7 6 Be3 a6 without Be2} Bd6 {[%emt 0:00:00]} 8. O-O-O {[%emt 0:00:30]} Be5 {[%emt 0:00:00] LiveBook: 81 Games} 9. g3 {[%emt 0:00:00]} Nge7 {[%emt 0:00:30]} 10. Qh5 $146 {[%emt 0:04:00]} ({Find the theoretical novelty and annotate with similar games:} 10. Qe2 O-O 11. f4 Bxd4 12. Bxd4 Nxd4 13. Rxd4 e5 14. Rd1 exf4 {1-0 (49) Caruana,F (2813)-Movsesian,S (2677) Douglas 2016}) 10... O-O {[%emt 0:06:30]} 11. f4 {[%emt 0:00:30]} Bxd4 {[%emt 0:00:30]} 12. Bxd4 {[%emt 0:00:00]} Nxd4 {[%emt 0:00:30]} 13. Rxd4 {[%emt 0:00:00]} b5 {[%emt 0:05:30]} 14. Be2 {[%emt 0:05:30]} Nc6 {[%emt 0:02:30]} (14... Bb7 $11) 15. Rd2 {[%emt 0:07:30]} ({White should play} 15. Qc5 $14) 15... d6 {[%emt 0:07:30]} 16. Rhd1 {[%emt 0:01:30]} b4 {[%emt 0:01:30]} 17. Na4 $11 {[%emt 0:03:30]} e5 {[%emt 0:01:30]} 18. Rxd6 {[%emt 0:16:30]} Nd4 {[%emt 0:00:30]} 19. R1xd4 {[%emt 0:01:30]} exd4 {[%emt 0:00:30]} 20. Qc5 {[%emt 0:03:30]} Qxc5 {[%emt 0:12:30]} 21. Nxc5 {[%emt 0:00:30]} a5 {[%emt 0:00:30]} 22. Rxd4 {[%emt 0:01:30]} Bh3 {[%emt 0:14:30]} 23. Bc4 {[%emt 0:07:30]} Rfc8 {[%emt 0:07:30]} 24. Na4 {[%emt 0:13:30]} Rd8 {[%emt 0:02:30]} 25. Bd5 {[%emt 0:00:30]} Be6 {[%emt 0:00:30]} 26. Nc5 {[%emt 0:02:30]} Bxd5 {[%emt 0:01:30]} 27. exd5 {[%emt 0:00:30]} Rd6 {[%emt 0:24:31]} 28. c4 {[%emt 0:06:30]} bxc3 {[%emt 0:01:17]} 29. bxc3 {[%emt 0:00:00]} Kf8 {[%emt 0:01:44]} 30. c4 {[%emt 0:01:00]} Rb8 {[%emt 0:00:12]} 31. Kc2 {[%emt 0:01:30]} Ke8 {[%emt 0:01:42]} 32. Nd3 {[%emt 0:01:30]} Rdb6 {[%emt 0:04:11]} 33. c5 {[%emt 0:00:30]} Rb1 {[%emt 0:00:00]} 34. c6 {[%emt 0:03:20]} Rh1 {[%emt 0:00:43]} 35. c7 {[%emt 0:01:53]} Rxh2+ {[%emt 0:00:30]} 36. Kc3 {[%emt 0:00:00]} Rc8 {[%emt 0:02:57]} 37. d6 {[%emt 0:00:13]} Kd7 {[%emt 0:00:00]} 38. Nc5+ {[%emt 0:00:05]} Kc6 {[%emt 0:00:18]} 39. d7 {[%emt 0:00:30]} Kxc7 {[%emt 0:00:00]} 40. dxc8=Q+ {[%emt 0:01:35]} Kxc8 {[%emt 0:00:00]} 41. a4 {[%emt 0:00:24]} Rg2 {[%emt 0:01:25]} 42. Rd3 {[%emt 0:00:30]} Kc7 {[%emt 0:00:00]} 43. Ne4 {[%emt 0:01:30]} f6 {[%emt 0:00:00]} 44. Rd5 {[%emt 0:02:30]} Kb6 {[%emt 0:01:30]} 45. Rb5+ {[%emt 0:00:30]} Kc6 {[%emt 0:00:30]} 46. Rxa5 {[%emt 0:00:00]} Rg1 {[%emt 0:00:30]} 47. Rc5+ {[%emt 0:02:00]} Kb6 {[%emt 0:00:30]} 48. a5+ {[%emt 0:01:30]} Ka6 {[%emt 0:00:00]} 49. Kc4 {[%emt 0:00:30]} Rd1 {[%emt 0:00:00]} 50. Nc3 {[%emt 0:01:30]} Rg1 {[%emt 0:00:30]} 51. Nd5 {[%emt 0:00:00]} Rxg3 {[%emt 0:00:30]} 52. Nb4+ {[%emt 0:00:00]} Kb7 {[%emt 0:00:30]} 53. Kb5 {[%emt 0:00:30]} h5 {[%emt 0:00:30]} 54. a6+ {[%emt 0:00:30]} Kb8 {[%emt 0:00:00]} 55. Kb6 {[%emt 0:00:00]} Ra3 {[%emt 0:00:00]} 56. a7+ {[%emt 0:00:00]} 1-0

[Event "Turkey IS Bank Super League 2017"]
[Site "Darica-Kocaeli"]
[Date "2017.07.30"]
[Round "5"]
[White "Unuk, Laura"]
[Black "Osmak, Iulija"]
[Result "1-0"]
[ECO "D18"]
[WhiteElo "2343"]
[BlackElo "2353"]
[Annotator "NA"]
[PlyCount "105"]
[EventType "team-tourn"]
[EventCountry "TUR"]
[SourceTitle "playchess.com"]
[Source "ChessBase"]
[SourceQuality "1"]
[TimeControl "40/5400+30:1800+30"]

1. d4 {[%emt 0:00:30]} d5 {[%emt 0:01:00]} 2. c4 {[%emt 0:00:30]} c6 {[%emt 0:00:30]} 3. Nf3 {[%emt 0:00:30]} Nf6 {[%emt 0:00:00]} 4. Nc3 {[%emt 0:00:00]} dxc4 {[%emt 0:01:00]} 5. a4 $11 {[%emt 0:00:00]} Bf5 {[%emt 0:00:00] LiveBook: 10757 Games} 6. e3 {[%emt 0:00:30]} e6 {[%emt 0:00:00]} 7. Bxc4 {[%emt 0:00:00]} Bb4 {[%emt 0:00:30]} 8. O-O {[%emt 0:00:00]} O-O {[%emt 0:00:00]} 9. Nh4 {[%emt 0:00:30]} Nbd7 {[%emt 0:02:00]} 10. f3 {[%emt 0:00:30]} c5 {[%emt 0:07:30]} 11. Na2 {[%emt 0:20:30]} Ba5 {[%emt 0:23:30]} 12. Nxf5 {[%emt 0:12:30]} exf5 {[%emt 0:00:30]} 13. dxc5 {[%emt 0:01:30]} Bc7 {[%emt 0:00:30]} 14. Qc2 {[%emt 0:03:30]} Nxc5 {[%emt 0:02:30]} 15. b4 {[%emt 0:09:30]} Ncd7 {[%emt 0:02:30]} 16. Qxf5 {[%emt 0:03:30]} Be5 {[%emt 0:00:30]} 17. Rb1 {[%emt 0:01:30]} Qc7 {[%emt 0:00:30]} 18. f4 {[%emt 0:00:30]} Qxc4 {[%emt 0:01:30]} 19. fxe5 {[%emt 0:01:30]} Nxe5 {[%emt 0:09:30]} 20. Qxe5 {[%emt 0:03:30]} Qxa2 {[%emt 0:00:30]} 21. Bb2 {[%emt 0:00:00]} Ne8 {[%emt 0:03:30]} 22. Qe4 {[%emt 0:09:00]} Qxa4 {[%emt 0:15:30]} 23. Qxb7 {[%emt 0:02:30]} Rd8 {[%emt 0:06:30]} 24. Bd4 {[%emt 0:05:30]} Rd7 {[%emt 0:01:30]} 25. Qe4 {[%emt 0:01:30]} Nc7 {[%emt 0:03:04]} 26. Ra1 {[%emt 0:03:30]} Qxb4 {[%emt 0:00:24]} 27. Rxa7 {[%emt 0:00:30]} Re7 {[%emt 0:02:38]} 28. Qh4 {[%emt 0:04:25]} f6 {[%emt 0:07:27]} 29. Qh5 {[%emt 0:09:08]} Ne6 {[%emt 0:00:44]} 30. Bc5 {[%emt 0:00:17]} Nxc5 {[%emt 0:03:37]} 31. Rxe7 {[%emt 0:00:05]} Na4 {[%emt 0:01:15]} 32. Qd5+ {[%emt 0:02:01]} Kh8 {[%emt 0:00:05]} 33. Qd7 {[%emt 0:01:31]} Nc5 {[%emt 0:01:37]} 34. Qa7 {[%emt 0:02:16]} Rg8 {[%emt 0:00:21]} 35. Rxf6 {[%emt 0:00:57]} Ne4 {[%emt 0:02:16]} 36. Rf1 {[%emt 0:00:03]} Nc3 {[%emt 0:00:35]} 37. Ref7 {[%emt 0:01:41]} Qh4 {[%emt 0:01:30]} 38. Qc7 {[%emt 0:00:57]} Ne2+ {[%emt 0:00:39]} 39. Kh1 {[%emt 0:00:04]} h6 {[%emt 0:00:19]} 40. Rf8 {[%emt 0:00:00]} Qh5 {[%emt 0:01:29]} 41. Rxg8+ {[%emt 0:04:35]} Kxg8 {[%emt 0:00:00]} 42. Qc8+ {[%emt 0:00:30]} Kh7 {[%emt 0:00:00]} 43. Qf5+ {[%emt 0:00:30]} Qxf5 {[%emt 0:00:30]} 44. Rxf5 {[%emt 0:00:30]} Kg6 {[%emt 0:00:30]} 45. g4 {[%emt 0:00:30]} Nc3 {[%emt 0:00:30]} 46. Kg2 {[%emt 0:00:00]} Ne4 {[%emt 0:00:00]} 47. h4 {[%emt 0:00:00]} Nf6 {[%emt 0:00:00]} 48. Kf3 {[%emt 0:00:30]} h5 {[%emt 0:00:00]} 49. Rxf6+ {[%emt 0:01:30]} gxf6 {[%emt 0:00:00]} 50. Kf4 {[%emt 0:00:30]} hxg4 {[%emt 0:00:30]} 51. Kxg4 {[%emt 0:00:00]} f5+ {[%emt 0:01:30]} 52. Kf4 {[%emt 0:00:00]} Kf6 {[%emt 0:00:00]} 53. h5 {[%emt 0:00:00]} 1-0

[Event "Turkey IS Bank Super League 2017"]
[Site "Darica-Kocaeli"]
[Date "2017.07.30"]
[Round "5"]
[White "Tuncer, Tuna"]
[Black "Gokerkan, Cem Kaan"]
[Result "1-0"]
[ECO "B09"]
[WhiteElo "2274"]
[BlackElo "2321"]
[Annotator "NA"]
[PlyCount "69"]
[EventType "team-tourn"]
[EventCountry "TUR"]
[SourceTitle "playchess.com"]
[Source "ChessBase"]
[SourceQuality "1"]
[TimeControl "40/5400+30:1800+30"]

1. e4 {[%emt 0:00:30]} g6 {[%emt 0:02:00]} 2. d4 {[%emt 0:00:30]} Bg7 {[%emt 0:01:30]} 3. Nc3 {[%emt 0:01:30]} d6 {[%emt 0:00:00]} 4. f4 {[%emt 0:01:30]} Nf6 {[%emt 0:01:00]} 5. a3 {[%emt 0:03:30]} O-O {[%emt 0:04:30]} 6. Nf3 {[%emt 0:00:30]} Na6 {[%emt 0:25:30]} 7. e5 {[%emt 0:03:30]} dxe5 {[%emt 0:00:30]} 8. fxe5 {[%emt 0:01:30]} Nd5 $11 {[%emt 0:03:30]} 9. Bc4 {[%emt 0:02:30]} c6 {[%emt 0:05:30]} 10. O-O {[%emt 0:11:30]} Nac7 {[%emt 0:00:00]} 11. Qe2 {[%emt 0:08:30]} Kh8 {[%emt 0:11:00]} 12. h3 {[%emt 0:08:30]} f6 {[%emt 0:04:30]} 13. Bd2 {[%emt 0:03:30]} Bf5 {[%emt 0:03:30]} 14. Bb3 {[%emt 0:04:30]} Nxc3 {[%emt 0:02:30]} 15. bxc3 {[%emt 0:05:30]} Qd7 {[%emt 0:02:30]} 16. Rae1 {[%emt 0:00:30]} Rae8 {[%emt 0:00:30]} 17. e6 {[%emt 0:00:30]} Qd6 {[%emt 0:03:30]} 18. g4 {[%emt 0:00:30]} Bxe6 {[%emt 0:10:35]} 19. Bxe6 {[%emt 0:01:30]} Nxe6 {[%emt 0:00:24]} 20. Qxe6 {[%emt 0:00:30]} Qg3+ {[%emt 0:00:30]} 21. Kh1 {[%emt 0:00:00]} Qxh3+ {[%emt 0:01:39]} 22. Nh2 {[%emt 0:00:00]} f5 {[%emt 0:01:28]} 23. g5 {[%emt 0:04:30]} c5 {[%emt 0:00:52]} 24. Rf3 {[%emt 0:00:30]} Qh4 {[%emt 0:00:21]} 25. dxc5 {[%emt 0:19:01]} Rd8 {[%emt 0:00:36]} 26. Bf4 {[%emt 0:01:24]} Rd5 {[%emt 0:05:59]} 27. Qxe7 {[%emt 0:07:24]} Rxc5 {[%emt 0:02:16]} 28. Rd1 {[%emt 0:00:59]} Rcc8 {[%emt 0:01:47]} 29. Be5 {[%emt 0:00:42]} Rg8 {[%emt 0:01:03]} 30. Bxg7+ {[%emt 0:00:08]} Rxg7 {[%emt 0:00:30]} 31. Rd8+ {[%emt 0:00:30]} Rxd8 {[%emt 0:00:30]} 32. Qxd8+ {[%emt 0:00:30]} Rg8 {[%emt 0:00:30]} 33. Qf6+ {[%emt 0:00:30]} Rg7 {[%emt 0:00:30]} 34. Re3 {[%emt 0:00:30]} h6 {[%emt 0:00:30]} 35. Re7 {[%emt 0:00:00]} 1-0

[Event "Turkey IS Bank Super League 2017"]
[Site "Darica-Kocaeli"]
[Date "2017.07.30"]
[Round "5"]
[White "Demircioglu, Emre"]
[Black "Ertan, Can"]
[Result "1-0"]
[ECO "E15"]
[WhiteElo "2265"]
[BlackElo "2377"]
[Annotator "NA"]
[PlyCount "87"]
[EventType "team-tourn"]
[EventCountry "TUR"]
[SourceTitle "playchess.com"]
[Source "ChessBase"]
[SourceQuality "1"]
[TimeControl "40/5400+30:1800+30"]

1. d4 {[%emt 0:00:30]} Nf6 {[%emt 0:01:00]} 2. c4 {[%emt 0:01:30]} e6 {[%emt 0:00:30]} 3. Nf3 {[%emt 0:00:30]} b6 {[%emt 0:00:30]} 4. g3 {[%emt 0:00:00]} Ba6 {[%emt 0:00:00]} 5. b3 {[%emt 0:01:00]} Bb4+ {[%emt 0:00:00]} 6. Bd2 {[%emt 0:00:30]} Be7 {[%emt 0:00:00]} 7. Nc3 {[%emt 0:01:30]} c6 {[%emt 0:03:00]} 8. e4 {[%emt 0:01:30]} d5 {[%emt 0:00:00]} 9. e5 {[%emt 0:01:30]} Ne4 {[%emt 0:00:00]} 10. cxd5 {[%emt 0:01:30]} Nxc3 {[%emt 0:05:30]} 11. Bxc3 {[%emt 0:00:30]} Bxf1 {[%emt 0:00:30]} 12. Kxf1 {[%emt 0:00:30]} Qxd5 {[%emt 0:01:30]} 13. Kg2 {[%emt 0:04:30]} h5 $11 {[%emt 0:34:30]} 14. h3 {[%emt 0:13:30]} Nd7 {[%emt 0:00:30]} 15. Qe2 {[%emt 0:00:30]} O-O {[%emt 0:11:30]} 16. Rad1 {[%emt 0:12:30]} a5 {[%emt 0:09:30]} 17. Rhe1 {[%emt 0:13:30]} a4 {[%emt 0:00:30]} 18. b4 {[%emt 0:00:30]} a3 {[%emt 0:04:30]} 19. Kg1 {[%emt 0:00:30]} b5 {[%emt 0:01:30]} 20. Rb1 {[%emt 0:14:30]} Nb6 {[%emt 0:00:30]} 21. Rb3 {[%emt 0:00:30]} Ra4 {[%emt 0:01:30]} 22. Nd2 {[%emt 0:02:30]} h4 {[%emt 0:03:30]} 23. gxh4 {[%emt 0:01:30]} f5 {[%emt 0:01:30]} 24. Qh5 {[%emt 0:03:30]} Rf7 {[%emt 0:00:41]} 25. Kh2 {[%emt 0:03:30]} Nd7 {[%emt 0:00:19]} 26. Nf3 {[%emt 0:09:48]} Nf8 {[%emt 0:01:02]} 27. Bd2 {[%emt 0:01:49]} g6 {[%emt 0:12:04]} 28. Qh6 {[%emt 0:01:11]} Rh7 {[%emt 0:00:03]} 29. Qf4 {[%emt 0:01:14]} Qd8 {[%emt 0:00:52]} 30. Ng5 {[%emt 0:02:06]} Bxg5 {[%emt 0:01:11]} 31. hxg5 {[%emt 0:00:01]} Qd5 {[%emt 0:01:12]} 32. Rc1 {[%emt 0:00:01]} Nd7 {[%emt 0:01:01]} 33. Qe3 {[%emt 0:01:14]} Nb6 {[%emt 0:03:00]} 34. Rc5 {[%emt 0:01:10]} Qd7 {[%emt 0:00:26]} 35. Qf3 {[%emt 0:00:41]} Nc4 {[%emt 0:00:47]} 36. Be3 {[%emt 0:01:13]} Ra6 {[%emt 0:00:16]} 37. Rd3 {[%emt 0:02:49]} Kg7 {[%emt 0:00:50]} 38. Bc1 {[%emt 0:00:24]} Rh4 {[%emt 0:00:53]} 39. Bf4 {[%emt 0:01:04]} Ra4 {[%emt 0:01:17]} 40. Kg3 {[%emt 0:00:00]} Rh8 {[%emt 0:02:36]} 41. Qxc6 {[%emt 0:03:15]} Qxc6 {[%emt 0:06:30]} 42. Rxc6 {[%emt 0:00:00]} Rxb4 {[%emt 0:04:38]} 43. Rc7+ {[%emt 0:01:00]} Kg8 {[%emt 0:05:37]} 44. d5 {[%emt 0:00:30]} 1-0

[Event "Turkey IS Bank Super League 2017"]
[Site "Darica-Kocaeli"]
[Date "2017.07.30"]
[Round "5"]
[White "Samani, Yamac"]
[Black "Yurtseven, Melih"]
[Result "1-0"]
[ECO "C04"]
[WhiteElo "2263"]
[BlackElo "2353"]
[Annotator "NA"]
[PlyCount "117"]
[EventType "team-tourn"]
[EventCountry "TUR"]
[SourceTitle "playchess.com"]
[Source "ChessBase"]
[SourceQuality "1"]
[TimeControl "40/5400+30:1800+30"]

1. e4 {[%emt 0:00:30]} e6 {[%emt 0:01:00]} 2. d4 {[%emt 0:01:30]} d5 {[%emt 0:00:30]} 3. Nd2 {[%emt 0:00:30]} Nc6 {[%emt 0:00:30]} 4. Ngf3 {[%emt 0:01:30]} Nf6 {[%emt 0:00:30]} 5. e5 {[%emt 0:00:00]} Nd7 {[%emt 0:00:30]} 6. Nb3 {[%emt 0:01:00]} Be7 {[%emt 0:00:00]} 7. Bf4 {[%emt 0:01:30]} a5 {[%emt 0:00:00]} 8. a4 {[%emt 0:00:30]} b6 {[%emt 0:00:30]} 9. h4 {[%emt 0:01:30]} Ba6 {[%emt 0:05:30]} 10. Bxa6 {[%emt 0:00:30]} Rxa6 {[%emt 0:00:30]} 11. Rh3 {[%emt 0:11:30]} Ndb8 {[%emt 0:19:30]} 12. Rg3 {[%emt 0:06:30]} Bf8 {[%emt 0:00:00]} 13. h5 {[%emt 0:05:30]} h6 $14 {[%emt 0:00:00]} 14. c3 {[%emt 0:02:30]} Ne7 {[%emt 0:03:30]} 15. Nh4 {[%emt 0:07:30]} Kd7 {[%emt 0:02:30]} 16. Be3 {[%emt 0:05:30]} Kc8 {[%emt 0:02:30]} 17. Qg4 {[%emt 0:12:30]} Qd7 {[%emt 0:03:30]} 18. Rf3 {[%emt 0:02:30]} Nec6 {[%emt 0:00:30]} 19. Qf4 {[%emt 0:04:30]} Nd8 {[%emt 0:00:30]} 20. Rg3 {[%emt 0:05:30]} Nbc6 {[%emt 0:04:30]} 21. Kf1 {[%emt 0:02:30]} Kb8 {[%emt 0:02:30]} 22. Kg1 {[%emt 0:00:30]} Ra8 {[%emt 0:06:30]} 23. Nc1 {[%emt 0:00:30]} Ne7 {[%emt 0:12:30]} 24. Nd3 {[%emt 0:03:30]} Rg8 {[%emt 0:00:30]} 25. Qg4 {[%emt 0:09:18]} g6 {[%emt 0:03:30]} 26. f4 {[%emt 0:05:22]} Rg7 {[%emt 0:12:12]} 27. Qf3 {[%emt 0:00:40]} Ndc6 {[%emt 0:02:26]} 28. Nf2 {[%emt 0:01:02]} Nf5 {[%emt 0:00:32]} 29. Nxf5 {[%emt 0:00:15]} gxf5 {[%emt 0:00:57]} 30. Rxg7 {[%emt 0:00:12]} Bxg7 {[%emt 0:00:02]} 31. Nd3 {[%emt 0:02:42]} Ka7 {[%emt 0:01:40]} 32. b4 {[%emt 0:01:19]} axb4 {[%emt 0:02:17]} 33. cxb4 {[%emt 0:00:03]} Bf8 {[%emt 0:00:14]} 34. Rb1 {[%emt 0:01:04]} Kb7 {[%emt 0:00:25]} 35. Qd1 {[%emt 0:00:00]} Be7 {[%emt 0:05:00]} 36. Qb3 {[%emt 0:00:11]} Kc8 {[%emt 0:03:23]} 37. Rc1 {[%emt 0:00:55]} Kb7 {[%emt 0:04:52]} 38. Ra1 {[%emt 0:01:19]} Qe8 {[%emt 0:00:33]} 39. Qc3 {[%emt 0:01:00]} Bf8 {[%emt 0:01:18]} 40. Bf2 {[%emt 0:00:00]} Be7 {[%emt 0:01:39]} 41. Qb3 {[%emt 0:10:08]} f6 {[%emt 0:13:01]} 42. Qc3 {[%emt 0:08:44]} Rc8 {[%emt 0:02:30]} 43. Rc1 {[%emt 0:01:50]} Na7 {[%emt 0:01:29]} 44. Qc2 {[%emt 0:08:26]} Qxh5 {[%emt 0:00:59]} 45. b5 {[%emt 0:01:11]} c6 {[%emt 0:02:38]} 46. Qb3 {[%emt 0:04:33]} cxb5 {[%emt 0:01:22]} 47. Rxc8 {[%emt 0:00:30]} Kxc8 {[%emt 0:00:00]} 48. axb5 {[%emt 0:00:05]} Qe8 {[%emt 0:00:34]} 49. Bh4 {[%emt 0:01:03]} fxe5 {[%emt 0:02:10]} 50. Bxe7 {[%emt 0:00:30]} Qxe7 {[%emt 0:00:30]} 51. Nxe5 {[%emt 0:00:30]} Qe8 {[%emt 0:00:30]} 52. Qa3 {[%emt 0:00:21]} Kb7 {[%emt 0:07:47]} 53. Qa6+ {[%emt 0:00:47]} Ka8 {[%emt 0:00:03]} 54. Nc6 {[%emt 0:00:38]} Qd7 {[%emt 0:00:55]} 55. Qxb6 {[%emt 0:00:51]} Qb7 {[%emt 0:03:09]} 56. Qa5 {[%emt 0:01:38]} Qd7 {[%emt 0:00:01]} 57. b6 {[%emt 0:00:18]} Kb7 {[%emt 0:00:02]} 58. bxa7 {[%emt 0:00:18]} Qc8 {[%emt 0:01:08]} 59. Qb5+ {[%emt 0:00:13]} 1-0

[Event "Turkey IS Bank Super League 2017"]
[Site "Darica-Kocaeli"]
[Date "2017.07.30"]
[Round "5"]
[White "Yaran, Siar"]
[Black "Sevgi, Volkan"]
[Result "1-0"]
[ECO "A01"]
[WhiteElo "2253"]
[BlackElo "2199"]
[Annotator "NA"]
[PlyCount "105"]
[EventType "team-tourn"]
[EventCountry "TUR"]
[SourceTitle "playchess.com"]
[Source "ChessBase"]
[SourceQuality "1"]
[TimeControl "40/5400+30:1800+30"]

1. b3 {[%emt 0:01:30]} e5 {[%emt 0:03:00]} 2. Bb2 {[%emt 0:00:30]} Nc6 {[%emt 0:00:00]} 3. e3 {[%emt 0:00:30]} g6 {[%emt 0:00:00]} 4. f4 {[%emt 0:02:30]} Bg7 {[%emt 0:02:30]} 5. Nf3 {[%emt 0:00:30]} d6 {[%emt 0:02:30]} 6. Bb5 {[%emt 0:18:30]} Bd7 {[%emt 0:00:30]} 7. O-O {[%emt 0:01:30]} f5 {[%emt 0:06:30]} 8. Na3 {[%emt 0:10:30]} Qe7 $11 {[%emt 0:05:30]} 9. fxe5 {[%emt 0:13:30]} Nxe5 {[%emt 0:06:30]} 10. Bxd7+ {[%emt 0:08:30]} Qxd7 {[%emt 0:00:30]} 11. Nxe5 {[%emt 0:07:30]} dxe5 {[%emt 0:01:30]} 12. Nc4 {[%emt 0:01:30]} e4 {[%emt 0:00:30]} 13. d4 {[%emt 0:07:30]} Ne7 {[%emt 0:05:30]} 14. Qe1 {[%emt 0:02:30]} Nd5 {[%emt 0:02:30]} 15. Rd1 {[%emt 0:00:30]} Qe6 {[%emt 0:04:30]} 16. Na5 {[%emt 0:04:04]} Bh6 {[%emt 0:09:30]} 17. c4 {[%emt 0:01:02]} Nxe3 {[%emt 0:00:30]} 18. d5 {[%emt 0:00:20]} Qa6 {[%emt 0:00:30]} 19. Bxh8 {[%emt 0:05:42]} Nxd1 {[%emt 0:00:00]} 20. Bd4 {[%emt 0:03:41]} Ne3 {[%emt 0:06:00]} 21. Bxe3 {[%emt 0:07:49]} Bxe3+ {[%emt 0:00:30]} 22. Qxe3 {[%emt 0:00:30]} Qxa5 {[%emt 0:00:30]} 23. g4 {[%emt 0:00:30]} O-O-O {[%emt 0:00:00]} 24. gxf5 {[%emt 0:00:14]} gxf5 {[%emt 0:00:00]} 25. Qg5 {[%emt 0:00:23]} Rf8 {[%emt 0:03:30]} 26. Rxf5 {[%emt 0:00:30]} Qe1+ {[%emt 0:00:30]} 27. Kg2 {[%emt 0:00:30]} Qe2+ {[%emt 0:00:30]} 28. Kh3 {[%emt 0:00:30]} Re8 {[%emt 0:01:30]} 29. Qg4 {[%emt 0:00:21]} Qxg4+ {[%emt 0:00:30]} 30. Kxg4 {[%emt 0:00:30]} e3 {[%emt 0:00:30]} 31. Rf1 {[%emt 0:00:00]} Re4+ {[%emt 0:12:30]} 32. Kf3 {[%emt 0:00:14]} Rh4 {[%emt 0:00:00]} 33. Rh1 {[%emt 0:01:49]} Rh3+ {[%emt 0:00:00]} 34. Kg2 {[%emt 0:00:00]} Rh4 {[%emt 0:00:30]} 35. Re1 {[%emt 0:00:00]} Rd4 {[%emt 0:05:30]} 36. Kf3 {[%emt 0:00:02]} b5 {[%emt 0:00:00]} 37. Kxe3 {[%emt 0:01:36]} Rh4 {[%emt 0:00:00]} 38. c5 {[%emt 0:00:53]} Rxh2 {[%emt 0:00:00]} 39. Kd4 {[%emt 0:00:17]} Rd2+ {[%emt 0:00:00]} 40. Ke5 {[%emt 0:00:00]} Rxa2 {[%emt 0:02:30]} 41. c6 {[%emt 0:14:15]} Rg2 {[%emt 0:23:30]} 42. Rf1 {[%emt 0:03:02]} Rg8 {[%emt 0:00:30]} 43. Rf7 {[%emt 0:01:15]} Re8+ {[%emt 0:15:02]} 44. Kd4 {[%emt 0:00:37]} Rh8 {[%emt 0:00:06]} 45. Kc5 {[%emt 0:09:32]} h5 {[%emt 0:00:44]} 46. d6 {[%emt 0:00:06]} cxd6+ {[%emt 0:00:50]} 47. Kxb5 {[%emt 0:00:01]} Kb8 {[%emt 0:08:16]} 48. Rb7+ {[%emt 0:00:21]} Ka8 {[%emt 0:00:57]} 49. Ka6 {[%emt 0:00:38]} Rh6 {[%emt 0:00:30]} 50. Rxa7+ {[%emt 0:00:30]} Kb8 {[%emt 0:00:30]} 51. Kb6 {[%emt 0:00:30]} d5 {[%emt 0:00:30]} 52. Rg7 {[%emt 0:00:30]} Rh8 {[%emt 0:00:00]} 53. Rb7+ {[%emt 0:00:00]} 1-0